[Event "44th Chess Olympiad Women 2022"]
[Site "Chennai"]
[Date "2022.07.29"]
[Round "1.13"]
[White "Matnadze, Ana"]
[Black "Kojima, Natsumi"]
[Result "1-0"]
[WhiteElo "2406"]
[BlackElo "1782"]
[Annotator "TA"]
[PlyCount "29"]
[EventDate "2022.??.??"]
[TimeControl "60"]

{[%evp 13,29,27,42,37,29,20,25,9,21,6,9,12,8,0,0,-21,-31,-80]} 1. d4 {[%emt 0:
00:00]} e6 {[%emt 0:00:21]} 2. c4 {[%emt 0:00:40]} f5 {[%emt 0:00:30]} 3. Nf3 {
[%emt 0:00:06]} Nf6 {[%emt 0:00:31]} 4. g3 {[%emt 0:00:07]} d5 {[%emt 0:00:29]}
5. Bg2 {[%emt 0:00:07]} c6 {[%emt 0:00:59]} 6. O-O {[%emt 0:00:08]} Bd6 {
[%emt 0:01:09]} 7. Bf4 {[%emt 0:00:09]} O-O {[%emt 0:04:18][%cal Yh8f8,Yf8f6,
Yf6h6]} 8. Nbd2 {[%emt 0:00:34] A90: Dutch Defence: Miscellaneous and Modern
Stonewall (with ...Bd6).} Ne4 {[%emt 0:04:02]} 9. Qb3 {[%emt 0:02:16]} Bxf4 {
[%emt 0:04:04]} 10. gxf4 {[%emt 0:00:05] White has an edge.} Nd7 {[%emt 0:01:
07]} 11. Qe3 {[%emt 0:01:37]} Rf6 {[%emt 0:04:00] [#]} 12. Rad1 $146 {[%emt 0:
04:03]} ({Predecessor:} 12. Nxe4 fxe4 13. Ne5 Nxe5 14. fxe5 Rh6 15. h3 Bd7 16.
f3 exf3 17. Qxf3 Qe7 18. Rac1 {1-0 (46) Matnadze,A (2418)-Hadad Diaz,A (2037)
San Cristobal 2012}) 12... Rh6 {[%emt 0:06:31]} 13. Nxe4 {[%emt 0:06:57]} fxe4
{[%emt 0:00:49]} 14. Ne5 {[%emt 0:01:32]} Nxe5 {[%emt 0:04:56]} 15. dxe5 {
[%emt 0:01:24] Weighted Error Value: White=0.10 (very precise) / Black=0.03 
(flawless) . Loss on time!?} (15. fxe5 $15 Bd7 16. h3) 1-0

[Event "44th Chess Olympiad Women 2022"]
[Site "Chennai"]
[Date "2022.07.29"]
[Round "1.13"]
[White "Misawa, Yuki"]
[Black "Calzetta Ruiz, Monica"]
[Result "0-1"]
[WhiteElo "1587"]
[BlackElo "2230"]
[Annotator "RC"]
[PlyCount "66"]
[EventDate "2022.??.??"]
[TimeControl "60"]

1. d4 {[%emt 0:00:04]} Nf6 {[%emt 0:00:07]} 2. Nf3 {[%emt 0:00:04]} c5 {
[%emt 0:00:20]} 3. c3 {[%emt 0:00:07]} g6 {[%emt 0:02:15]} 4. Bf4 {[%emt 0:00:
00]} Bg7 {[%emt 0:02:23]} 5. e3 {[%emt 0:01:55]} O-O {[%emt 0:08:23]} 6. Be2 {
[%emt 0:00:59]} d6 {[%emt 0:01:29]} 7. h3 {[%emt 0:09:25]} Qb6 {[%emt 0:03:15]}
8. Qb3 {[%emt 0:02:03]} Be6 {[%emt 0:00:17]} 9. Qxb6 {[%emt 0:11:33]} axb6 {
[%emt 0:02:27]} 10. Na3 {[%emt 0:03:47]} Nd5 {[%emt 0:02:14]} 11. Bh2 {[%emt 0:
00:00]} Nxc3 {[%emt 0:08:04]} 12. bxc3 {[%emt 0:09:13]} Rxa3 {[%emt 0:01:21]}
13. Kd2 {[%emt 0:02:53]} Nd7 {[%emt 0:09:03]} 14. Ng5 {[%emt 0:06:48]} Rfa8 {
[%emt 0:08:52]} 15. Nxe6 {[%emt 0:03:15]} Rxa2+ {[%emt 0:00:15]} 16. Rxa2 {
[%emt 0:01:06]} Rxa2+ {[%emt 0:00:06]} 17. Kd3 {[%emt 0:07:51]} fxe6 {[%emt 0:
00:00]} 18. Bf3 {[%emt 0:04:41]} b5 {[%emt 0:24:35]} 19. Rb1 {[%emt 0:07:54]}
c4+ {[%emt 0:03:48]} 20. Ke4 {[%emt 0:00:24]} Rxf2 {[%emt 0:00:26]} 21. Rxb5 {
[%emt 0:03:20]} Bh6 {[%emt 0:01:41]} 22. d5 {[%emt 0:09:53]} e5 {[%emt 0:00:20]
} 23. Bxe5 {[%emt 0:00:38]} Nxe5 {[%emt 0:00:15]} 24. Rxb7 {[%emt 0:01:08]} Kf7
{[%emt 0:02:05]} 25. Rb8 {[%emt 0:04:39]} Rc2 {[%emt 0:03:52]} 26. Kd4 {
[%emt 0:01:36]} Rd2+ {[%emt 0:00:31]} 27. Ke4 {[%emt 0:00:20]} Nd7 {[%emt 0:00:
00]} 28. Bg4 {[%emt 0:02:07]} Nxb8 {[%emt 0:00:22]} 29. Be6+ {[%emt 0:00:21]}
Ke8 {[%emt 0:00:25]} 30. g4 {[%emt 0:00:28]} Nd7 {[%emt 0:00:23]} 31. Bg8 {
[%emt 0:00:15]} Nf6+ {[%emt 0:00:06]} 32. Kf3 {[%emt 0:00:14]} Nxg8 {[%emt 0:
00:00]} 33. h4 {[%emt 0:00:45]} Rxd5 {[%emt 0:00:34]} 0-1

[Event "44th Chess Olympiad Women 2022"]
[Site "Chennai"]
[Date "2022.07.29"]
[Round "1.13"]
[White "Sakai, Azumi"]
[Black "Vega Gutierrez, Sabrina"]
[Result "0-1"]
[WhiteElo "1759"]
[BlackElo "2366"]
[Annotator "TA"]
[PlyCount "30"]
[EventDate "2022.??.??"]
[TimeControl "60"]

{[%evp 12,30,28,17,18,18,16,25,22,19,30,32,36,15,36,21,22,5,22,-40,-44]} 1. d4
{[%emt 0:00:04]} d5 {[%emt 0:00:05]} 2. c4 {[%emt 0:00:07]} e6 {[%emt 0:00:09]}
3. Nf3 {[%emt 0:00:09]} c6 {[%emt 0:00:26]} 4. e3 {[%emt 0:00:26]} Nf6 {
[%emt 0:01:18]} 5. b3 {[%emt 0:00:15]} Nbd7 {[%emt 0:01:13]} 6. Bb2 {[%emt 0:
00:00]} Bd6 {[%emt 0:05:04]} 7. Bd3 {[%emt 0:00:20]} O-O {[%emt 0:00:32] A06:
Réti Opening: 1 Nf3 d5.} 8. O-O {[%emt 0:00:15]} b6 {[%emt 0:04:40]} 9. Ne5 {
[%emt 0:05:15]} Bb7 {[%emt 0:00:20] White has an edge.} 10. Nd2 {[%emt 0:02:02]
[#]} a5 $146 {[%emt 0:06:50]} ({Predecessor:} 10... c5 11. Nxd7 Nxd7 12. cxd5
Bxd5 13. Qe2 cxd4 14. Bxd4 Nc5 15. Bc2 Rc8 16. Rfd1 Qh4 {½-½ (28) Dominguez
Perez,L (2732)-Ding,L (2766) Huaian 2016}) 11. Qc2 {[%emt 0:06:25]} h6 {
[%emt 0:04:19]} 12. e4 {[%emt 0:07:28]} Rc8 {[%emt 0:06:22]} 13. Nxd7 {[%emt 0:
00:00]} Nxd7 {[%emt 0:00:20]} 14. e5 {[%emt 0:00:22]} Be7 {[%emt 0:00:20]} 15.
f4 {[%emt 0:01:02]} (15. cxd5 $11 cxd5 16. Qd1) 15... c5 $1 {[%emt 0:00:42]
Weighted Error Value: White=0.18 (very precise) /Black=0.06 (flawless)} 0-1

[Event "44th Chess Olympiad Women 2022"]
[Site "Chennai"]
[Date "2022.07.29"]
[Round "1.14"]
[White "Ampaire Shakira"]
[Black "Miranda Llanes, Yerisbel"]
[Result "0-1"]
[WhiteElo "1666"]
[BlackElo "2347"]
[Annotator "ChessBase"]
[PlyCount "74"]
[EventDate "2022.??.??"]
[TimeControl "60"]

1. e4 {[%emt 0:00:18]} e5 {[%emt 0:00:17]} 2. Nf3 {[%emt 0:00:41]} Nc6 {
[%emt 0:00:03]} 3. Bb5 {[%emt 0:00:59]} a6 {[%emt 0:00:29]} 4. Bxc6 {[%emt 0:
00:00]} dxc6 {[%emt 0:00:15]} 5. O-O {[%emt 0:03:37]} Bd6 {[%emt 0:04:31]} 6.
d4 {[%emt 0:02:22]} exd4 {[%emt 0:00:49]} 7. Qxd4 {[%emt 0:00:59]} f6 {[%emt 0:
00:00]} 8. Nc3 {[%emt 0:16:01]} Ne7 {[%emt 0:06:55]} 9. e5 {[%emt 0:07:19]}
fxe5 {[%emt 0:04:33]} 10. Nxe5 {[%emt 0:01:09]} O-O {[%emt 0:03:45]} 11. Qc4+ {
[%emt 0:03:39]} Nd5 {[%emt 0:00:34]} 12. Nxd5 {[%emt 0:01:15]} Be6 {[%emt 0:00:
00]} 13. Nxc6 {[%emt 0:03:40]} bxc6 {[%emt 0:02:01]} 14. Qxc6 {[%emt 0:01:34]}
Kh8 {[%emt 0:08:25]} 15. f4 {[%emt 0:05:29]} Bd7 {[%emt 0:06:38]} 16. Qc3 {
[%emt 0:01:37]} c6 {[%emt 0:03:22]} 17. Nb4 {[%emt 0:00:49]} Qb6+ {[%emt 0:00:
00]} 18. Be3 {[%emt 0:01:24]} Qxb4 {[%emt 0:00:22]} 19. Qd3 {[%emt 0:01:05]}
Bf5 {[%emt 0:00:44]} 20. Qb3 {[%emt 0:01:19]} Rfe8 {[%emt 0:03:58]} 21. Rae1 {
[%emt 0:10:34]} Qxb3 {[%emt 0:00:41]} 22. cxb3 {[%emt 0:00:16]} Bb4 {[%emt 0:
00:00]} 23. Kf2 {[%emt 0:08:50]} Bxe1+ {[%emt 0:00:42]} 24. Rxe1 {[%emt 0:00:
00]} Rad8 {[%emt 0:00:43]} 25. h3 {[%emt 0:01:02]} Kg8 {[%emt 0:00:59]} 26. g4
{[%emt 0:00:21]} Be4 {[%emt 0:00:51]} 27. Rc1 {[%emt 0:02:14]} Rd3 {[%emt 0:00:
00]} 28. Rc3 {[%emt 0:02:43]} Rxc3 {[%emt 0:03:02]} 29. bxc3 {[%emt 0:03:09]}
Bg2 {[%emt 0:00:30]} 30. h4 {[%emt 0:00:33]} Bh3 {[%emt 0:00:18]} 31. g5 {
[%emt 0:00:48]} Bg4 {[%emt 0:00:30]} 32. b4 {[%emt 0:01:01]} Kf7 {[%emt 0:00:
00]} 33. a4 {[%emt 0:02:06]} Re4 {[%emt 0:01:15]} 34. a5 {[%emt 0:04:04]} Bh5 {
[%emt 0:02:02]} 35. Bb6 {[%emt 0:04:37]} Rxf4+ {[%emt 0:00:29]} 36. Ke3 {
[%emt 0:00:21]} Rxh4 {[%emt 0:00:19]} 37. Bd8 {[%emt 0:00:12]} Bg6 {[%emt 0:00:
00]} 0-1

[Event "44th Chess Olympiad Women 2022"]
[Site "Chennai"]
[Date "2022.07.29"]
[Round "1.14"]
[White "Forgas Moreno, Yaniela"]
[Black "Nansubuga, Gloria"]
[Result "1-0"]
[WhiteElo "2343"]
[BlackElo "1538"]
[Annotator "TA"]
[PlyCount "71"]
[EventDate "2022.??.??"]
[TimeControl "60"]

{[%evp 12,71,38,16,18,31,25,0,0,6,18,17,13,12,17,14,9,11,19,-55,87,66,96,33,30,
30,106,41,55,46,77,91,116,103,97,0,0,0,0,-57,-55,-103,-89,-180,-42,-110,-79,
-145,0,0,0,-246,-250,-347,-336,-358,-266,-353,-263,-268,-270,-260]} 1. e4 {
[%emt 0:00:13]} e5 {[%emt 0:00:02]} 2. Nf3 {[%emt 0:00:11]} Nc6 {[%emt 0:00:13]
} 3. Bc4 {[%emt 0:00:10]} h6 {[%emt 0:00:49]} 4. c3 {[%emt 0:01:35]} Nf6 {
[%emt 0:02:26]} 5. d3 {[%emt 0:00:00][%cal Yd2d3,Yd3d4]} Bc5 {[%emt 0:00:00]}
6. O-O {[%emt 0:00:00]} O-O {[%emt 0:01:18]} 7. d4 {[%emt 0:02:17]} Bb6 {
[%emt 0:07:24] C54: Giuoco Piano: 4 c3 Nf6, main lines with 5 d4 and 5 d3.} 8.
dxe5 {[%emt 0:06:08]} Nxe4 {[%emt 0:00:26]} 9. Qd5 {[%emt 0:05:41] [#]} (9. Bd5
$5 {[%cal Rd5e4]} Nxf2 10. Rxf2 $11) 9... Nxf2 $146 {[%emt 0:05:26] The
position is equal.} ({Predecessor:} 9... Nc5 10. Na3 d6 11. exd6 cxd6 12. Be3
Be6 13. Qh5 Qf6 14. Rad1 Rad8 15. Qh4 Qxh4 16. Nxh4 {1-0 (23) Demchenko,A 
(2679)-Guimaraes,D (2278) St Petersburg 2018}) 10. Rxf2 {[%emt 0:00:18]
Threatening Nd4.} Bxf2+ {[%emt 0:00:06]} 11. Kxf2 {[%emt 0:00:07]} d6 {[%emt 0:
00:00]} 12. exd6 {[%emt 0:03:39]} Be6 {[%emt 0:03:23]} 13. Qe4 {[%emt 0:04:30]
[#] Black must now prevent Bd3.} Bxc4 {[%emt 0:00:52]} 14. Qxc4 {[%emt 0:00:08]
} Qxd6 {[%emt 0:00:13]} 15. Bf4 {[%emt 0:00:39] Inhibits Ne5.} (15. Be3 $11)
15... Qg6 {[%emt 0:03:23]} (15... Qd1 $15 {keeps the upper hand.}) 16. Nbd2 $36
{[%emt 0:05:09] Black is under pressure.} Rfe8 {[%emt 0:00:32]} 17. Re1 {
[%emt 0:06:11]} (17. Bxc7 $16 Re7 18. Bg3) 17... Rxe1 $14 {[%emt 0:01:04]} 18.
Nxe1 {[%emt 0:06:36]} Re8 {[%emt 0:03:28]} (18... Qf5 $11) 19. Nef3 {[%emt 0:
05:19]} (19. Bxc7 $16 Qf5+ 20. Ndf3) 19... Qf5 {[%emt 0:08:32] Strongly
threatening ...g5.} 20. h3 {[%emt 0:12:23]} Ne7 {[%emt 0:18:54][%cal Yc6e7,
Ye7g6,Yg6f8]} 21. g4 {[%emt 0:11:25]} (21. Qxc7 $2 Nd5 22. Qa5 {[#]} Re2+ $3
23. Kf1 Qd3 24. Qxd5 Qxd5 $19) 21... Qf6 {[%emt 0:00:00]} 22. Bxc7 {[%emt 0:09:
58] White is more active.} Ng6 {[%emt 0:04:27]} 23. Bg3 {[%emt 0:03:42]} ({
White should try} 23. Kg3 $16) 23... Qb6+ $1 $11 {[%emt 0:01:35]} 24. Qd4 {
[%emt 0:01:27]} Qxb2 {[%emt 0:02:31]} 25. h4 {[%emt 0:00:00]} (25. a4 $11)
25... Qxa2 $15 {[%emt 0:03:45]} 26. h5 {[%emt 0:02:58]} (26. Qd7 $15 {is more
appropriate.} Qe6 27. Qxe6 Rxe6 28. h5) 26... Nf8 $17 {[%emt 0:07:54]} 27. g5 {
[%emt 0:02:09]} (27. Be5 $17 {keeps fighting.}) 27... Qa6 {[%emt 0:03:09]} (
27... Ne6 $19 28. Qe3 (28. Qd7 $2 Rd8 $19) 28... hxg5 29. Nxg5 Qd5) 28. c4 {
[%emt 0:05:33]} ({Much worse is} 28. Kg1 hxg5 29. Nxg5 Qe2 $17) (28. Ne4 $15)
28... Ne6 {[%emt 0:02:58]} ({Much weaker is} 28... Qe6 $6 29. gxh6 Qxh6 30.
Qxa7 $11) 29. Qe3 {[%emt 0:01:34]} (29. Qe4 $142) 29... Nc7 {[%emt 0:02:29]}
30. Qd4 $11 {[%emt 0:01:00]} Ne6 {[%emt 0:00:28][%csl Yd4,Yg5]} 31. Qe5 {
[%emt 0:00:35]} (31. Qe3 $1 $11 {and White has nothing to worry.}) 31... Qb6+
$19 {[%emt 0:02:09]} 32. Kg2 {[%emt 0:00:31]} hxg5 {[%emt 0:06:58][%cal Ye6f4,
Yh6g5,Yg5g4]} 33. Kf1 {[%emt 0:01:54]} Qc6 {[%emt 0:03:00] Hoping for ...g4.}
34. Qd5 {[%emt 0:00:33]} g4 {[%emt 0:01:52]} 35. Qxc6 {[%emt 0:00:15]} bxc6 {
[%emt 0:00:20]} 36. Ne5 {[%emt 0:00:30] Weighted Error Value: White=0.51/
Black=0.37. Loss on time!?} 1-0

[Event "44th Chess Olympiad Women 2022"]
[Site "Chennai"]
[Date "2022.07.29"]
[Round "1.14"]
[White "Kawuma Patricia"]
[Black "Hernandez Gil, Ineymig"]
[Result "0-1"]
[WhiteElo "1653"]
[BlackElo "2234"]
[Annotator "ChessBase"]
[PlyCount "110"]
[EventDate "2022.??.??"]
[TimeControl "60"]

1. e4 {[%emt 0:00:03]} c6 {[%emt 0:01:40]} 2. d4 {[%emt 0:00:30]} d5 {[%emt 0:
00:00]} 3. exd5 {[%emt 0:00:16]} cxd5 {[%emt 0:00:12]} 4. Bd3 {[%emt 0:00:19]}
Nc6 {[%emt 0:00:18]} 5. c3 {[%emt 0:00:34]} Nf6 {[%emt 0:00:19]} 6. h3 {
[%emt 0:00:20]} Ne4 {[%emt 0:03:23]} 7. Nd2 {[%emt 0:02:56]} Nd6 {[%emt 0:00:
00]} 8. Ngf3 {[%emt 0:00:38]} Bf5 {[%emt 0:01:52]} 9. Bxf5 {[%emt 0:03:30]}
Nxf5 {[%emt 0:00:30]} 10. Nb3 {[%emt 0:00:39]} e6 {[%emt 0:03:25]} 11. Bf4 {
[%emt 0:02:22]} Bd6 {[%emt 0:03:52]} 12. Bxd6 {[%emt 0:01:20]} Qxd6 {[%emt 0:
00:00]} 13. O-O {[%emt 0:00:33]} O-O {[%emt 0:02:13]} 14. Nc5 {[%emt 0:01:11]}
b6 {[%emt 0:03:34]} 15. Nd3 {[%emt 0:01:57]} Rfc8 {[%emt 0:08:28]} 16. Qd2 {
[%emt 0:05:34]} Rab8 {[%emt 0:05:45]} 17. Qg5 {[%emt 0:02:00]} h6 {[%emt 0:00:
00]} 18. Qg4 {[%emt 0:00:54]} Na5 {[%emt 0:08:21]} 19. Nf4 {[%emt 0:02:31]} Nc4
{[%emt 0:03:31]} 20. Rab1 {[%emt 0:06:06]} Qd8 {[%emt 0:09:35]} 21. Rfe1 {
[%emt 0:01:02]} Ncd6 {[%emt 0:07:37]} 22. Ne5 {[%emt 0:05:10]} Rb7 {[%emt 0:00:
00]} 23. Re2 {[%emt 0:01:30]} Qg5 {[%emt 0:06:27]} 24. Qxg5 {[%emt 0:01:28]}
hxg5 {[%emt 0:00:08]} 25. Nfd3 {[%emt 0:00:33]} Ne4 {[%emt 0:02:27]} 26. Nf3 {
[%emt 0:03:16]} Rbc7 {[%emt 0:03:00]} 27. Nd2 {[%emt 0:00:55]} Ned6 {[%emt 0:
00:00]} 28. Nf3 {[%emt 0:00:30]} Ne4 {[%emt 0:00:43]} 29. Nd2 {[%emt 0:00:17]}
Nf6 {[%emt 0:03:28]} 30. Nf3 {[%emt 0:00:48]} g4 {[%emt 0:00:47]} 31. hxg4 {
[%emt 0:00:50]} Nxg4 {[%emt 0:00:09]} 32. Nfe5 {[%emt 0:00:38]} Nf6 {[%emt 0:
00:00]} 33. Rbe1 {[%emt 0:01:07]} Ne4 {[%emt 0:02:13]} 34. Ng4 {[%emt 0:01:08]}
g6 {[%emt 0:02:52]} 35. Ne3 {[%emt 0:02:30]} Nfd6 {[%emt 0:01:16]} 36. f3 {
[%emt 0:02:16]} Ng3 {[%emt 0:01:53]} 37. Rc2 {[%emt 0:00:03]} Kg7 {[%emt 0:00:
00]} 38. Kf2 {[%emt 0:01:24]} Ngf5 {[%emt 0:01:12]} 39. Nd1 {[%emt 0:02:00]}
Nxd4 {[%emt 0:00:48]} 40. Rd2 {[%emt 0:00:54]} Nc4 {[%emt 0:00:50]} 41. Rde2 {
[%emt 0:31:25]} Nxe2 {[%emt 0:30:14]} 42. Rxe2 {[%emt 0:00:03]} Kf6 {[%emt 0:
00:00]} 43. Ne3 {[%emt 0:00:21]} Nxe3 {[%emt 0:00:21]} 44. Rxe3 {[%emt 0:00:09]
} Rd8 {[%emt 0:00:00]} 45. Nc1 {[%emt 0:00:00]} d4 {[%emt 0:00:00]} 46. Rd3 {
[%emt 0:00:00]} dxc3 {[%emt 0:00:00]} 47. Rxc3 {[%emt 0:00:00]} Rxc3 {[%emt 0:
00:00]} 48. bxc3 {[%emt 0:00:00]} Rd2+ {[%emt 0:00:00]} 49. Kg3 {[%emt 0:00:00]
} Rc2 {[%emt 0:00:00]} 50. Nb3 {[%emt 0:00:00]} Rxa2 {[%emt 0:00:00]} 51. Kh2 {
[%emt 0:00:00]} a5 {[%emt 0:00:00]} 52. Nd4 {[%emt 0:00:00]} a4 {[%emt 0:00:00]
} 53. Kg3 {[%emt 0:00:00]} Rb2 {[%emt 0:00:00]} 54. Nc6 {[%emt 0:00:00]} a3 {
[%emt 0:00:00]} 55. Kf4 {[%emt 0:00:00]} a2 {[%emt 0:00:00]} 0-1

[Event "44th Chess Olympiad Women 2022"]
[Site "Chennai"]
[Date "2022.07.29"]
[Round "1.14"]
[White "Ordaz Valdes, Lisandra Teresa"]
[Black "Nakabo, Peninah"]
[Result "1-0"]
[WhiteElo "2367"]
[BlackElo "1747"]
[Annotator "ChessBase"]
[PlyCount "93"]
[EventDate "2022.??.??"]
[TimeControl "60"]

1. d4 {[%emt 0:00:06]} e6 {[%emt 0:00:10]} 2. c4 {[%emt 0:00:07]} d5 {[%emt 0:
00:00]} 3. Nc3 {[%emt 0:00:16]} Be7 {[%emt 0:00:30]} 4. Nf3 {[%emt 0:00:11]}
Nf6 {[%emt 0:00:15]} 5. Bg5 {[%emt 0:00:09]} O-O {[%emt 0:00:34]} 6. e3 {
[%emt 0:00:05]} Nbd7 {[%emt 0:04:07]} 7. Rc1 {[%emt 0:01:17]} c6 {[%emt 0:00:
00]} 8. Qc2 {[%emt 0:01:21]} h6 {[%emt 0:00:48]} 9. Bh4 {[%emt 0:00:19]} a6 {
[%emt 0:13:34]} 10. a3 {[%emt 0:06:31]} Ne8 {[%emt 0:04:06]} 11. Bg3 {[%emt 0:
00:00]} Nd6 {[%emt 0:01:38]} 12. cxd5 {[%emt 0:06:49]} exd5 {[%emt 0:00:46]}
13. Bd3 {[%emt 0:00:05]} Nb6 {[%emt 0:12:23]} 14. O-O {[%emt 0:03:29]} Ndc4 {
[%emt 0:01:15]} 15. a4 {[%emt 0:04:42]} Bg4 {[%emt 0:03:17]} 16. b3 {[%emt 0:
00:00]} Bxf3 {[%emt 0:09:22]} 17. bxc4 {[%emt 0:00:47]} Bg4 {[%emt 0:00:22]}
18. c5 {[%emt 0:01:10]} Nd7 {[%emt 0:01:37]} 19. Rb1 {[%emt 0:03:12]} Ra7 {
[%emt 0:02:49]} 20. f4 {[%emt 0:04:53]} Bh4 {[%emt 0:06:16]} 21. Bxh4 {[%emt 0:
00:00]} Qxh4 {[%emt 0:00:16]} 22. f5 {[%emt 0:01:12]} f6 {[%emt 0:03:59]} 23.
Rf4 {[%emt 0:09:14]} Qg5 {[%emt 0:04:39]} 24. Qf2 {[%emt 0:01:15]} h5 {[%emt 0:
00:00]} 25. Qg3 {[%emt 0:07:11]} Re8 {[%emt 0:04:52]} 26. h3 {[%emt 0:08:31]}
Bxf5 {[%emt 0:10:27]} 27. Qxg5 {[%emt 0:00:17]} fxg5 {[%emt 0:00:05]} 28. Rxf5
{[%emt 0:00:11]} Rxe3 {[%emt 0:00:20]} 29. Rf3 {[%emt 0:01:56]} Rxf3 {[%emt 0:
00:00]} 30. gxf3 {[%emt 0:00:04]} Kf7 {[%emt 0:00:16]} 31. Bf5 {[%emt 0:00:05]}
Nf8 {[%emt 0:02:21]} 32. Bc8 {[%emt 0:02:39]} Ne6 {[%emt 0:00:24]} 33. Bxe6+ {
[%emt 0:00:10]} Kxe6 {[%emt 0:00:09]} 34. Re1+ {[%emt 0:00:01]} Kf6 {[%emt 0:
00:00]} 35. Re8 {[%emt 0:00:26]} Kf7 {[%emt 0:01:25]} 36. Rb8 {[%emt 0:00:11]}
Ke6 {[%emt 0:00:30]} 37. a5 {[%emt 0:00:11]} Kf5 {[%emt 0:01:17]} 38. Kf2 {
[%emt 0:00:11]} g4 {[%emt 0:00:16]} 39. fxg4+ {[%emt 0:00:15]} hxg4 {[%emt 0:
00:00]} 40. h4 {[%emt 0:00:04]} g6 {[%emt 0:01:28]} 41. Kg3 {[%emt 0:30:13]} b5
{[%emt 0:31:25]} 42. cxb6 {[%emt 0:01:18]} Re7 {[%emt 0:00:17]} 43. Rf8+ {
[%emt 0:00:05]} Ke6 {[%emt 0:00:33]} 44. Na4 {[%emt 0:00:24]} Kd6 {[%emt 0:00:
00]} 45. Rd8+ {[%emt 0:00:29]} Ke6 {[%emt 0:00:20]} 46. Nc5+ {[%emt 0:01:02]}
Kf7 {[%emt 0:00:14]} 47. Rd7 {[%emt 0:00:10]} 1-0

[Event "44th Chess Olympiad Women 2022"]
[Site "Chennai"]
[Date "2022.07.29"]
[Round "1.15"]
[White "Charinda, Kudzanayi"]
[Black "Peycheva, Gergana"]
[Result "0-1"]
[WhiteElo "1719"]
[BlackElo "2295"]
[Annotator "TA"]
[PlyCount "82"]
[EventDate "2022.??.??"]
[TimeControl "60"]

{[%evp 11,82,-12,-8,-4,-6,-14,0,0,0,-2,-7,-11,-3,-3,-7,-8,-10,-3,0,0,0,-11,-14,
-4,-15,-10,-8,-54,-72,-43,-56,-83,-81,-117,-72,-166,-78,-161,-172,-177,-169,
-150,-162,-165,-72,-329,-259,-254,-251,-238,-249,-283,-316,-283,-275,-360,-364,
-373,-362,-421,-425,-1056,-775,-5397,-5318,-3120,-2537,-29990,-29991,-29994,
-29994,-29995,-29996]} 1. e4 {[%emt 0:00:06]} c6 {[%emt 0:00:24]} 2. d4 {
[%emt 0:00:30]} d5 {[%emt 0:00:36]} 3. exd5 {[%emt 0:01:24]} cxd5 {[%emt 0:00:
00]} 4. Bd3 {[%emt 0:00:23]} Nc6 {[%emt 0:01:10]} 5. c3 {[%emt 0:01:02]} Qc7 {
[%emt 0:01:36]} 6. Nf3 {[%emt 0:03:18]} Bg4 {[%emt 0:01:53]} 7. h3 {[%emt 0:00:
00] B13: Caro-Kann: Exchange Variation and Panov-Botvinnik Attack.} Bh5 {
[%emt 0:10:28]} 8. Nbd2 {[%emt 0:04:02][%cal Yb1d2,Yd2f1,Yf1e3,Ye3g4,Yg4e5]} e6
{[%emt 0:02:12]} 9. O-O {[%emt 0:10:42] The position is equal.} Bd6 {[%emt 0:
02:17]} 10. Re1 {[%emt 0:05:08]} Nge7 $1 {[%emt 0:05:38] 10... Nge7 scores
better than 10...Nf6.} 11. Nf1 {[%emt 0:05:15]} Bg6 {[%emt 0:06:20]} 12. Ne3 {
[%emt 0:02:42]} O-O {[%emt 0:02:30]} 13. Ng4 {[%emt 0:06:01] [#]} Bxd3 $146 {
[%emt 0:05:54]} ({Predecessor:} 13... a6 14. Nge5 Nxe5 15. Nxe5 Bxd3 16. Qxd3
b5 17. Bd2 Ng6 18. f4 a5 19. Re2 b4 {½-½ (27) Buchnicek,P (2330) -Chytilek,R
(2393) Czech Republic 2012}) 14. Qxd3 {[%emt 0:02:36]} Ng6 {[%emt 0:01:18]} (
14... Rfc8 {feels hotter.} 15. Bd2 Rab8 16. Ng5 Ng6) 15. Qe2 {[%emt 0:06:19]}
Rfe8 {[%emt 0:09:57]} 16. Nge5 {[%emt 0:03:28]} Nf8 {[%emt 0:00:00]} 17. Qd3 {
[%emt 0:05:39]} f6 {[%emt 0:03:04][%cal Yf7f6,Yf6e5,Ye5e4]} 18. Nxc6 {[%emt 0:
04:40]} bxc6 {[%emt 0:05:30]} 19. Bd2 {[%emt 0:00:00]} (19. c4 $11) 19... e5
$15 {[%emt 0:02:37]} 20. dxe5 {[%emt 0:01:10]} fxe5 {[%emt 0:00:35]} 21. Qc2 {
[%emt 0:01:55]} Ng6 {[%emt 0:07:37]} 22. Re2 {[%emt 0:02:58]} Qd7 {[%emt 0:04:
06]} 23. Rae1 {[%emt 0:02:11]} (23. Qa4 $17) 23... Rf8 {[%emt 0:04:40]} (23...
e4 $19 {is more deadly.} 24. Nh2 Ne5) 24. Nh2 {[%emt 0:04:34]} (24. Nxe5 $17 {
keeps fighting.} Nxe5 25. Rxe5) 24... e4 $19 {[%emt 0:02:02]} 25. c4 {[%emt 0:
04:06]} Ne5 {[%emt 0:00:51]} 26. cxd5 {[%emt 0:00:00]} cxd5 {[%emt 0:00:08]
White must now prevent ...Nd3.} 27. Qb3 {[%emt 0:00:00]} Nd3 {[%emt 0:03:20]} (
27... Qf7 $19 {Threatens to win with ...Rab8.} 28. Be3 Rab8) 28. Rf1 $2 {
[%emt 0:02:25] [#] Loses the game.} (28. Qxd5+ $17 {was necessary.} Kh8 29. g3)
28... Bxh2+ {[%emt 0:02:53]} 29. Kxh2 {[%emt 0:01:18]} Rab8 {[%emt 0:00:04]}
30. Qd1 {[%emt 0:04:34]} Rxb2 {[%emt 0:00:00]} 31. Be3 {[%emt 0:01:44]} Rxe2 {
[%emt 0:01:22]} 32. Qxe2 {[%emt 0:00:20]} d4 {[%emt 0:00:12]} 33. Bd2 {[%emt 0:
00:57]} Qf5 {[%emt 0:00:16]} 34. Kg1 {[%emt 0:00:38]} h6 {[%emt 0:01:07]} 35.
Bc1 {[%emt 0:01:15]} e3 {[%emt 0:00:58]} 36. f3 {[%emt 0:00:57]} (36. Bxe3 $142
Re8 37. Rd1 dxe3 38. fxe3) 36... Rc8 {[%emt 0:00:47]} 37. Ba3 {[%emt 0:00:35]}
Nf4 {[%emt 0:00:27]} 38. Qb2 {[%emt 0:00:00]} Rc2 {[%emt 0:01:18]} 39. Qb8+ {
[%emt 0:00:30]} Kh7 {[%emt 0:00:43] Black mates.} 40. Qb1 {[%emt 0:00:27]}
Rxg2+ {[%emt 0:00:55]} 41. Kh1 {[%emt 0:00:00]} d3 {[%emt 0:30:08] Weighted
Error Value: White=0.82/Black=0.17 (very precise)} 0-1